fUST/lending_fUST_20250731
["ID","MTS","AMOUNT","RATE_DAILY","PERIOD"]
[376317377,1753931444067,-904.11329,0.00019497,2]
[376317378,1753931444076,-904.11329,0.00019497,2]
[376317379,1753931444086,-153.747899,0.00019497,2]
[376317380,1753931444095,-153.747899,0.00019497,2]
[376317381,1753931444104,-151.0,0.00019497,2]
[376317382,1753931444114,-274.585973,0.00019497,2]
[376317383,1753931444123,-274.585973,0.00019497,2]
[376317384,1753931444132,-151.0,0.00019497,2]
[376317385,1753931444142,-500.0,0.00019498,2]
[376317386,1753931444151,-502.43696013,0.00019498,2]
[376317387,1753931444161,-166.935629,0.00019498,2]
[376317388,1753931444171,-166.935629,0.00019498,2]
[376317389,1753931444181,-500.0,0.00019498,2]
[376317390,1753931444190,-500.0,0.00019498,2]
[376317391,1753931444200,-500.0,0.00019498,2]
[376317392,1753931444210,-270.681373,0.00019499,2]
[376317393,1753931444219,-151.0,0.00019499,2]
[376317394,1753931444229,-152.185653,0.00019499,2]
[376317395,1753931444239,-151.0,0.00019499,2]
[376317396,1753931444249,-151.0,0.00019499,2]
[376317397,1753931444259,-151.0,0.00019499,2]
[376317398,1753931444269,-151.0,0.00019499,2]
[376317399,1753931444279,-151.241318,0.00019499,2]
[376317400,1753931444289,-151.241318,0.00019499,2]
[376317401,1753931444298,-151.0,0.00019499,2]
[376317402,1753931444308,-151.0,0.00019499,2]
[376317403,1753931444318,-500.0,0.00019499,2]
[376317404,1753931444329,-500.0,0.00019499,2]
[376317405,1753931444340,-500.0,0.00019499,2]
[376317406,1753931444349,-500.0,0.00019499,2]
[376317407,1753931444358,-500.0,0.00019499,2]
[376317408,1753931444368,-500.0,0.00019499,2]
[376317409,1753931444377,-500.0,0.00019499,2]
[376317410,1753931444387,-500.0,0.00019499,2]
[376317411,1753931444398,-196.680338,0.00019499,2]
[376317412,1753931444409,-152.842483,0.00019499,2]
[376317413,1753931444419,-196.680338,0.00019499,2]
[376317414,1753931444429,-832.270723,0.00019499,2]
[376317415,1753931444439,-832.270723,0.00019499,2]
[376317416,1753931444448,-168.576852,0.00019499,2]
[376317417,1753931444458,-168.576852,0.00019499,2]
[376317418,1753931444467,-724.335533,0.00019499,2]
[376317419,1753931444477,-724.335533,0.00019499,2]
[376317420,1753931444487,-151.0,0.00019499,2]
[376317421,1753931444496,-404.23285,0.00019499,2]
[376317422,1753931444506,-404.23285,0.00019499,2]
[376317423,1753931444516,-500.0,0.00019499,2]
[376317424,1753931444525,-500.0,0.00019499,2]
[376317425,1753931444536,-500.0,0.00019499,2]
[376317426,1753931444546,-500.0,0.00019499,2]
[376317427,1753931444555,-500.0,0.00019499,2]
[376317428,1753931444565,-500.0,0.00019499,2]
[376317429,1753931444575,-500.0,0.00019499,2]
[376317430,1753931444585,-500.0,0.00019499,2]
[376317431,1753931444597,-536.80175307,0.00019499,2]
[376317432,1753931444607,-153.747899,0.00019499,2]
[376317433,1753931444616,-153.747891,0.00019499,2]
[376317434,1753931444627,-151.0,0.00019499,2]
[376317435,1753931444636,-274.585973,0.00019499,2]
[376317436,1753931444645,-274.585975,0.00019499,2]
[376317437,1753931444656,-151.0,0.00019499,2]
[376317438,1753931444668,-151.844387,0.000195,2]
[376317439,1753931444677,-151.0,0.000195,2]
[376317440,1753931444686,-200.29,0.000195,2]
[376317441,1753931444695,-151.45985,0.000195,2]
[376317442,1753931444705,-151.0,0.000195,2]
[376317443,1753931444714,-152.054893,0.000195,2]
[376317444,1753931444724,-200.530298,0.000195,2]
[376317445,1753931444733,-200.530298,0.000195,2]
[376317446,1753931444743,-200.530298,0.000195,2]
[376317447,1753931444753,-200.530298,0.000195,2]
[376317448,1753931444762,-200.530298,0.000195,2]
[376317449,1753931444772,-151.0,0.000195,2]
[376317450,1753931444781,-151.0,0.000195,2]
[376317451,1753931444791,-151.0,0.000195,2]
[376317452,1753931444800,-151.0,0.000195,2]
[376317453,1753931444810,-151.0,0.000195,2]
[376317454,1753931444819,-151.0,0.000195,2]
[376317455,1753931444828,-228.708592,0.000195,2]
[376317456,1753931444838,-228.708592,0.000195,2]
[376317457,1753931444849,-228.708592,0.000195,2]
[376317458,1753931444859,-228.708592,0.000195,2]
[376317459,1753931444868,-228.708592,0.000195,2]
[376317460,1753931444878,-228.708592,0.000195,2]
[376317461,1753931444961,-228.708592,0.000195,2]
[376317462,1753931444971,-228.708592,0.000195,2]
[376317463,1753931444981,-151.0,0.000195,2]
[376317464,1753931444991,-151.0,0.000195,2]
[376317465,1753931445000,-151.0,0.000195,2]
[376317466,1753931445010,-151.0,0.000195,2]
[376317467,1753931445022,-151.0,0.000195,2]
[376317468,1753931445039,-210.614669,0.000195,2]
[376317469,1753931445048,-151.0,0.000195,2]
[376317470,1753931445058,-151.0,0.000195,2]
[376317471,1753931445067,-151.0,0.000195,2]
[376317472,1753931445076,-151.0,0.000195,2]
[376317473,1753931445085,-151.0,0.000195,2]
[376317474,1753931445096,-151.0,0.000195,2]
[376317475,1753931445105,-151.682575,0.000195,2]
[376317476,1753931445115,-151.241318,0.000195,2]
[376317477,1753931445124,-151.241318,0.000195,2]
[376317478,1753931445134,-151.241318,0.000195,2]
[376317479,1753931445143,-151.241318,0.000195,2]
[376317480,1753931445153,-151.241318,0.000195,2]
[376317481,1753931445162,-151.241318,0.000195,2]
[376317482,1753931445172,-151.241318,0.000195,2]
[376317483,1753931445182,-151.241318,0.000195,2]
[376317484,1753931445191,-151.0,0.000195,2]
[376317485,1753931445200,-151.0,0.000195,2]
[376317486,1753931445209,-151.0,0.000195,2]
[376317487,1753931445219,-151.0,0.000195,2]
[376317488,1753931445228,-151.0,0.000195,2]
[376317489,1753931445237,-194.306385,0.000195,2]
[376317490,1753931445247,-152.421997,0.000195,2]
[376317491,1753931445256,-151.0,0.000195,2]
[376317492,1753931445265,-151.0,0.000195,2]
[376317493,1753931445275,-151.0,0.000195,2]
[376317494,1753931445284,-151.0,0.000195,2]
[376317495,1753931445293,-196.680338,0.000195,2]
[376317496,1753931445303,-196.680338,0.000195,2]
[376317497,1753931445312,-196.680338,0.000195,2]
[376317498,1753931445321,-196.680338,0.000195,2]
[376317499,1753931445330,-196.680338,0.000195,2]
[376317500,1753931445340,-196.680338,0.000195,2]
[376317501,1753931445348,-196.680338,0.000195,2]
[376317502,1753931445358,-196.680338,0.000195,2]
[376317503,1753931445367,-832.270723,0.000195,2]
[376317504,1753931445377,-832.270723,0.000195,2]
[376317505,1753931445386,-832.270723,0.000195,2]
[376317506,1753931445395,-832.270723,0.000195,2]
[376317507,1753931445405,-832.270723,0.000195,2]
[376317508,1753931445414,-832.270723,0.000195,2]
[376317509,1753931445423,-832.270723,0.000195,2]
[376317510,1753931445432,-832.270723,0.000195,2]
[376317511,1753931445442,-168.576852,0.000195,2]
[376317512,1753931445451,-168.576852,0.000195,2]
[376317513,1753931445460,-168.576852,0.000195,2]
[376317514,1753931445469,-168.576852,0.000195,2]
[376317515,1753931445478,-168.576852,0.000195,2]
[376317516,1753931445488,-168.576852,0.000195,2]
[376317517,1753931445497,-168.576852,0.000195,2]
[376317518,1753931445507,-168.576852,0.000195,2]
[376317519,1753931445517,-724.335533,0.000195,2]
[376317520,1753931445526,-724.335533,0.000195,2]
[376317521,1753931445535,-724.335533,0.000195,2]
[376317522,1753931445544,-724.335533,0.000195,2]
[376317523,1753931445554,-724.335533,0.000195,2]
[376317524,1753931445564,-724.335533,0.000195,2]
[376317525,1753931445574,-724.335533,0.000195,2]
[376317526,1753931445583,-724.335533,0.000195,2]
[376317527,1753931445596,-151.0,0.000195,2]
[376317528,1753931445605,-151.0,0.000195,2]
[376317529,1753931445614,-166.935629,0.000195,2]
[376317530,1753931445624,-166.935629,0.000195,2]
[376317531,1753931445634,-166.935629,0.000195,2]
[376317532,1753931445643,-166.935635,0.000195,2]
[376317533,1753931445652,-404.23285,0.000195,2]
[376317534,1753931445663,-404.23285,0.000195,2]
[376317535,1753931445672,-404.23285,0.000195,2]
[376317536,1753931445681,-404.23285,0.000195,2]
[376317537,1753931445691,-404.23285,0.000195,2]
[376317538,1753931445705,-404.23285,0.000195,2]
[376317539,1753931445714,-344.005131,0.000195,2]
[376317540,1753931445723,-344.005133,0.000195,2]
[376317541,1753931445732,-904.11329,0.000195,2]
[376317542,1753931445742,-904.11328813,0.000195,2]
[376317543,1753931445751,-151.0,0.000195,2]
[376317544,1753931445761,-228.708592,0.00019505,2]
[376317545,1753931445770,-228.708592,0.00019505,2]
[376317546,1753931445780,-151.0,0.00019505,2]
[376317547,1753931445789,-2008.0,0.00019505,2]
[376317548,1753931445798,-151.0,0.00019522,2]
[376317549,1753931445808,-186.388283,0.00019522,2]
[376317550,1753931445817,-171.40437796,0.00019567,2]
[376317551,1753931445826,-5000.0,0.00019576,2]
[376317552,1753931445836,-500.0,0.00019595,2]
[376317553,1753931445845,-5000.0,0.00019596,2]
[376317554,1753931445854,-200.530298,0.00019596,2]
[376317555,1753931445863,-200.530298,0.00019596,2]
[376317556,1753931445873,-151.0,0.00019596,2]
[376317557,1753931445882,-153.40652,0.00019596,2]
[376317558,1753931445891,-151.0,0.00019596,2]
[376317559,1753931445900,-151.0,0.000196,2]
[376317560,1753931445910,-151.0,0.000196,2]
[376317561,1753931445920,-151.0,0.000196,2]
[376317562,1753931445929,-460.00002308,0.00019618,2]
[376317563,1753931445939,-463.44311601,0.00019618,2]
[376317564,1753931445948,-460.0,0.00019618,2]
[376317565,1753931445958,-560.924,0.00019621,2]
[376317566,1753931445967,-460.0,0.00019621,2]
[376317567,1753931445976,-460.0,0.00019621,2]
[376317568,1753931445985,-460.0,0.00019621,2]
[376317569,1753931445995,-1595.41,0.00019621,2]
[376317570,1753931446004,-460.0,0.00019621,2]
[376317571,1753931446014,-460.0,0.00019621,2]
[376317572,1753931446023,-3904.81,0.00019621,2]
[376317573,1753931446033,-460.0,0.00019621,2]
[376317574,1753931446042,-151.0,0.00019644,2]
[376317576,1753931446053,-196.680338,0.00019644,2]
[376317578,1753931446064,-196.680338,0.00019644,2]
[376317580,1753931446073,-404.23285,0.00019644,2]
[376317582,1753931446083,-404.232854,0.00019644,2]
[376317583,1753931446092,-460.0,0.00019646,2]
[376317584,1753931446102,-460.0,0.00019646,2]
[376317585,1753931446113,-2329.78,0.00019646,2]
[376317586,1753931446123,-460.0,0.00019646,2]
[376317587,1753931446149,-460.0,0.00019646,2]
[376317588,1753931446159,-460.0,0.00019646,2]
[376317589,1753931446171,-460.0,0.00019646,2]
[376317590,1753931446181,-460.0,0.00019646,2]
[376317591,1753931446191,-460.0,0.00019646,2]
[376317592,1753931446202,-464.44354505,0.00019646,2]
[376317593,1753931446212,-1612.73,0.00019646,2]
[376317594,1753931446222,-1521.49,0.00019646,2]
[376317595,1753931446233,-460.0,0.00019646,2]
[376317596,1753931446243,-460.0,0.00019646,2]
[376317597,1753931446253,-460.0,0.00019646,2]
[376317598,1753931446264,-974.15,0.00019646,2]
[376317599,1753931446274,-460.0,0.00019646,2]
[376317600,1753931446387,-460.0,0.00019646,2]
[376317601,1753931446396,-460.0,0.00019646,2]
[376317602,1753931446406,-460.0,0.00019646,2]
[376317603,1753931446415,-461.34,0.00019646,2]
[376317604,1753931446424,-460.0,0.00019646,2]
[376317605,1753931446434,-557.18,0.00019646,2]
[376317606,1753931446443,-460.0,0.00019646,2]
[376317607,1753931446453,-460.0,0.00019646,2]
[376317608,1753931446462,-1085.26,0.00019646,2]
[376317609,1753931446471,-460.0,0.00019646,2]
[376317610,1753931446480,-460.0,0.00019646,2]
[376317611,1753931446490,-460.0,0.00019646,2]
[376317612,1753931446502,-460.0,0.00019646,2]
[376317613,1753931446511,-460.0,0.00019646,2]
[376317614,1753931446520,-461.69909756,0.00019646,2]
[376317615,1753931446529,-5000.0,0.00019657,2]
[376317616,1753931446538,-247.79362124,0.00019667,2]
[376317617,1753931446547,-500.0,0.00019667,2]
[376317618,1753931446557,-462.82866305,0.00019667,2]
[376317619,1753931446566,-460.0,0.00019667,2]
[376317620,1753931446576,-460.0,0.00019667,2]
[376317621,1753931446587,-463.93119785,0.00019667,2]
[376317622,1753931446598,-460.0,0.00019667,2]
[376317623,1753931446607,-460.0,0.00019667,2]
[376317624,1753931446616,-460.0,0.00019667,2]
[376317625,1753931446626,-460.0,0.00019667,2]
[376317626,1753931446636,-460.0,0.00019667,2]
[376317627,1753931446646,-460.0,0.00019667,2]
[376317628,1753931446654,-461.04596966,0.00019667,2]
[376317629,1753931446666,-461.56099631,0.00019667,2]
[376317630,1753931446675,-460.0,0.00019667,2]
[376317631,1753931446684,-460.0,0.00019667,2]
[376317632,1753931446694,-460.0,0.00019667,2]
[376317633,1753931446703,-460.0,0.00019667,2]
[376317636,1753931446712,-460.0,0.00019667,2]
[376317637,1753931446721,-489.89693682,0.00019667,2]
[376317638,1753931446734,-460.0,0.00019667,2]
[376317639,1753931446743,-460.0,0.00019667,2]
[376317640,1753931446754,-460.0,0.00019667,2]
[376317641,1753931446763,-462.45335091,0.00019667,2]
[376317642,1753931446772,-460.0,0.00019667,2]
[376317643,1753931446783,-460.0,0.00019667,2]
[376317644,1753931446792,-460.0,0.00019667,2]
[376317645,1753931446802,-460.0,0.00019667,2]
[376317646,1753931446811,-461.27676469,0.00019667,2]
[376317647,1753931446821,-460.0,0.00019667,2]
[376317648,1753931446832,-462.77032325,0.00019667,2]
[376317649,1753931446841,-462.47685239,0.00019667,2]
[376317650,1753931446850,-460.0,0.00019667,2]
[376317651,1753931446860,-462.30424904,0.00019667,2]
[376317652,1753931446869,-299.17178879,0.00019667,2]
[376317653,1753931446879,-473.13913512,0.00019667,2]
[376317654,1753931446889,-460.0,0.00019667,2]
[376317655,1753931446901,-460.0,0.00019667,2]
[376317656,1753931446911,-460.0,0.00019667,2]
[376317657,1753931446921,-460.0,0.00019667,2]
[376317658,1753931446932,-579.2883153,0.00019667,2]
[376317659,1753931446941,-460.0,0.00019667,2]
[376317660,1753931446951,-460.0,0.00019667,2]
[376317661,1753931446960,-460.0,0.00019667,2]
[376317662,1753931446969,-460.0,0.00019667,2]
[376317663,1753931446980,-460.0,0.00019667,2]
[376317664,1753931446991,-460.0,0.00019667,2]
[376317665,1753931447000,-460.0,0.00019667,2]
[376317666,1753931447010,-460.0,0.00019667,2]
[376317667,1753931447021,-460.0,0.00019667,2]
[376317668,1753931447033,-477.12728318,0.00019667,2]
[376317669,1753931447043,-426.01008742,0.00019667,2]
[376317670,1753931447053,-460.0,0.00019667,2]
[376317671,1753931447064,-460.0,0.00019667,2]
[376317672,1753931447074,-460.0,0.00019667,2]
[376317673,1753931447084,-460.0,0.00019667,2]
[376317674,1753931447094,-460.0,0.00019667,2]
[376317675,1753931447104,-460.0,0.00019667,2]
[376317676,1753931447116,-460.0,0.00019667,2]
[376317677,1753931447126,-460.0,0.00019667,2]
[376317678,1753931447136,-382.90107045,0.00019667,2]
[376317679,1753931447146,-460.0,0.00019667,2]
[376317680,1753931447156,-227.20353143,0.00019667,2]
[376317681,1753931447166,-460.0,0.00019667,2]
[376317682,1753931447175,-460.0,0.00019667,2]
[376317683,1753931447185,-460.0,0.00019667,2]
[376317684,1753931447197,-460.0,0.00019667,2]
[376317685,1753931447207,-460.0,0.00019667,2]
[376317686,1753931447219,-511.45059259,0.00019667,2]
[376317687,1753931447230,-461.56380317,0.00019667,2]
[376317688,1753931447239,-460.0,0.00019667,2]
[376317689,1753931447249,-605.1819538,0.00019667,2]
[376317690,1753931447259,-460.0,0.00019667,2]
[376317691,1753931447270,-460.0,0.00019667,2]
[376317692,1753931447280,-460.0,0.00019667,2]
[376317693,1753931447289,-460.0,0.00019667,2]
[376317694,1753931447299,-460.0,0.00019667,2]
[376317695,1753931447308,-460.0,0.00019667,2]
[376317696,1753931447318,-263.69273273,0.00019667,2]
[376317697,1753931447328,-368.97276939,0.00019667,2]
[376317698,1753931447338,-460.0,0.00019667,2]
[376317699,1753931447347,-460.0,0.00019667,2]
[376317700,1753931447357,-460.0,0.00019667,2]
[376317701,1753931447366,-460.0,0.00019667,2]
[376317702,1753931447376,-460.0,0.00019667,2]
[376317703,1753931447386,-460.0,0.00019667,2]
[376317704,1753931447395,-460.0,0.00019667,2]
[376317705,1753931447404,-460.0,0.00019667,2]
[376317706,1753931447413,-460.0,0.00019667,2]
[376317707,1753931447423,-460.0,0.00019667,2]
[376317708,1753931447432,-460.0,0.00019667,2]
[376317709,1753931447441,-460.0,0.00019667,2]
[376317710,1753931447451,-384.58383672,0.00019667,2]
[376317711,1753931447460,-460.0,0.00019667,2]
[376317712,1753931447470,-535.76067518,0.00019667,2]
[376317713,1753931447480,-460.0,0.00019667,2]
[376317714,1753931447490,-460.0,0.00019667,2]
[376317715,1753931447500,-460.0,0.00019667,2]
[376317716,1753931447509,-460.0,0.00019667,2]
[376317717,1753931447518,-460.0,0.00019667,2]
[376317718,1753931447528,-460.0,0.00019667,2]
[376317719,1753931447538,-460.0,0.00019667,2]
[376317720,1753931447547,-159.47883607,0.00019667,2]
[376317721,1753931447557,-460.0,0.00019667,2]
[376317722,1753931447567,-179.36508459,0.00019667,2]
[376317723,1753931447576,-460.0,0.00019667,2]
[376317724,1753931447588,-460.0,0.00019667,2]
[376317725,1753931447599,-460.0,0.00019667,2]
[376317726,1753931447609,-460.0,0.00019667,2]
[376317727,1753931447694,-460.0,0.00019667,2]
[376317728,1753931447704,-460.0,0.00019667,2]
[376317729,1753931447713,-460.0,0.00019667,2]
[376317730,1753931447723,-460.0,0.00019667,2]
[376317731,1753931447733,-587.94,0.00019667,2]
[376317732,1753931447743,-460.0,0.00019667,2]
[376317733,1753931447753,-460.0,0.00019667,2]
[376317734,1753931447762,-616.71,0.00019667,2]
[376317735,1753931447772,-462.55631746,0.00019667,2]
[376317736,1753931447782,-460.0,0.00019667,2]
[376317737,1753931447791,-460.0,0.00019667,2]
[376317738,1753931447800,-460.0,0.00019667,2]
[376317739,1753931447809,-460.0,0.00019667,2]
[376317740,1753931447819,-460.0,0.00019667,2]
[376317741,1753931447829,-460.0,0.00019667,2]
[376317742,1753931447838,-460.0,0.00019667,2]
[376317743,1753931447847,-461.54151372,0.00019667,2]
[376317744,1753931447856,-460.0,0.00019667,2]
[376317745,1753931447866,-460.0,0.00019667,2]
[376317746,1753931447875,-461.85794706,0.00019667,2]
[376317747,1753931447884,-460.0,0.00019667,2]
[376317748,1753931447893,-460.0,0.00019667,2]
[376317749,1753931447903,-460.0,0.00019667,2]
[376317750,1753931447913,-351.90778237,0.00019667,2]
[376317751,1753931447922,-460.0,0.00019667,2]
[376317752,1753931447931,-460.0,0.00019667,2]
[376317753,1753931447941,-168.38590766,0.00019667,2]
[376317754,1753931447951,-460.0,0.00019667,2]
[376317755,1753931447961,-460.0,0.00019667,2]
[376317756,1753931447971,-460.0,0.00019667,2]
[376317757,1753931447981,-460.0,0.00019667,2]
[376317758,1753931447992,-460.0,0.00019667,2]
[376317759,1753931448001,-460.0,0.00019667,2]
[376317760,1753931448011,-460.0,0.00019667,2]
[376317761,1753931448021,-462.4741188,0.00019667,2]
[376317762,1753931448030,-460.0,0.00019667,2]
[376317763,1753931448040,-460.0,0.00019667,2]
[376317764,1753931448050,-460.0,0.00019667,2]
[376317765,1753931448059,-460.0,0.00019667,2]
[376317766,1753931448068,-460.0,0.00019667,2]
[376317767,1753931448078,-460.0,0.00019667,2]
[376317768,1753931448087,-463.39728923,0.00019667,2]
[376317769,1753931448097,-460.0,0.00019667,2]
[376317770,1753931448107,-460.0,0.00019667,2]
[376317771,1753931448117,-313.63502719,0.00019667,2]
[376317772,1753931448126,-460.56007321,0.00019667,2]
[376317773,1753931448136,-316.23059141,0.00019667,2]
[376317774,1753931448146,-460.0,0.00019667,2]
[376317775,1753931448155,-408.61930963,0.00019667,2]
[376317776,1753931448165,-460.0,0.00019667,2]
[376317777,1753931448175,-460.0,0.00019667,2]
[376317778,1753931448185,-461.57702546,0.00019667,2]
[376317779,1753931448196,-460.0,0.00019667,2]
[376317780,1753931448209,-483.35888054,0.00019667,2]
[376317781,1753931448220,-460.0,0.00019667,2]
[376317782,1753931448230,-460.0,0.00019667,2]
[376317783,1753931448239,-463.16712864,0.00019667,2]
[376317784,1753931448249,-463.2388414,0.00019667,2]
[376317785,1753931448258,-462.91516387,0.00019667,2]
[376317786,1753931448268,-462.84824051,0.00019667,2]
[376317787,1753931448278,-460.0,0.00019667,2]
[376317788,1753931448287,-460.0,0.00019667,2]
[376317789,1753931448297,-541.91,0.00019667,2]
[376317790,1753931448306,-460.0,0.00019667,2]
[376317791,1753931448316,-460.0,0.00019667,2]
[376317792,1753931448325,-460.0,0.00019667,2]
[376317793,1753931448334,-460.0,0.00019667,2]
[376317794,1753931448343,-460.0,0.00019667,2]
[376317795,1753931448353,-460.0,0.00019667,2]
[376317796,1753931448363,-464.79046838,0.00019667,2]
[376317797,1753931448372,-462.35566578,0.00019667,2]
[376317798,1753931448381,-460.0,0.00019667,2]
[376317799,1753931448390,-460.0,0.00019667,2]
[376317800,1753931448400,-460.0,0.00019667,2]
[376317801,1753931448410,-460.0,0.00019667,2]
[376317802,1753931448419,-463.21253902,0.00019667,2]
[376317803,1753931448428,-460.0,0.00019667,2]
[376317804,1753931448438,-462.35300803,0.00019667,2]
[376317805,1753931448448,-460.0,0.00019667,2]
[376317806,1753931448458,-460.0,0.00019667,2]
[376317807,1753931448467,-460.0,0.00019667,2]
[376317808,1753931448476,-462.25730716,0.00019667,2]
[376317809,1753931448485,-460.0,0.00019667,2]
[376317810,1753931448495,-460.0,0.00019667,2]
[376317811,1753931448504,-460.0,0.00019667,2]
[376317812,1753931448514,-460.0,0.00019667,2]
[376317813,1753931448523,-460.0,0.00019667,2]
[376317814,1753931448533,-460.0,0.00019667,2]
[376317815,1753931448542,-461.07290261,0.00019667,2]
[376317816,1753931448551,-464.2147819,0.00019667,2]
[376317817,1753931448561,-461.00797071,0.00019667,2]
[376317818,1753931448570,-500.0,0.00019669,2]
[376317819,1753931448580,-832.270723,0.00019672,2]
[376317820,1753931448592,-832.270729,0.00019672,2]
[376317821,1753931448601,-168.576852,0.00019672,2]
[376317822,1753931448610,-168.576856,0.00019672,2]
[376317823,1753931448620,-460.0,0.00019672,2]
[376317824,1753931448630,-460.0,0.00019672,2]
[376317825,1753931448642,-460.0,0.00019672,2]
[376317826,1753931448651,-460.0,0.00019672,2]
[376317827,1753931448661,-462.14707094,0.00019672,2]
[376317828,1753931448672,-460.0,0.00019672,2]
[376317829,1753931448682,-411.4857667,0.00019672,2]
[376317830,1753931448692,-460.0,0.00019672,2]
[376317831,1753931448702,-460.0,0.00019672,2]
[376317832,1753931448712,-460.0,0.00019672,2]
[376317833,1753931448721,-1658.07,0.00019672,2]
[376317834,1753931448731,-460.0,0.00019672,2]
[376317835,1753931448740,-460.0,0.00019672,2]
[376317836,1753931448749,-460.0,0.00019672,2]
[376317837,1753931448759,-3726.47,0.00019672,2]
[376317838,1753931448769,-460.0,0.00019672,2]
[376317839,1753931448779,-460.0,0.00019672,2]
[376317840,1753931448788,-641.87,0.00019672,2]
[376317841,1753931448861,-1379.98,0.00019672,2]
[376317842,1753931448872,-460.0,0.00019672,2]
[376317843,1753931448882,-1704.11,0.00019672,2]
[376317844,1753931448891,-151.0,0.00019674,2]
[376317845,1753931448900,-200.0,0.00019682,15]
[376317846,1753931448910,-200.0,0.00019682,15]
[376317847,1753931448920,-200.0,0.00019682,15]
[376317848,1753931448930,-200.0,0.00019682,15]
[376317849,1753931448940,-200.0,0.00019682,15]
[376317850,1753931448950,-200.0,0.00019682,15]
[376317851,1753931448959,-200.0,0.00019682,15]
[376317852,1753931448970,-200.0,0.00019682,15]
[376317853,1753931448979,-228.708592,0.00019698,2]
[376317854,1753931448990,-228.708592,0.00019698,2]
[376317855,1753931448999,-151.0,0.000197,2]
[376317856,1753931449008,-151.0,0.000197,2]
[376317857,1753931449017,-228.708592,0.00019727,2]
[376317858,1753931449027,-228.708592,0.00019727,2]
[376317859,1753931449036,-151.241318,0.00019727,2]
[376317860,1753931449045,-151.241318,0.00019727,2]
[376317861,1753931449055,-724.335533,0.00019727,2]
[376317862,1753931449064,-724.335533,0.00019727,2]
[376317863,1753931449074,-5000.0,0.00019727,2]
[376317864,1753931449083,-151.0,0.00019767,2]
[376317865,1753931449093,-151.0,0.00019768,2]
[376317866,1753931449102,-460.0,0.00019768,2]
[376317867,1753931449112,-462.33305156,0.00019768,2]
[376317868,1753931449122,-460.0,0.00019768,2]
[376317869,1753931449132,-460.0,0.00019768,2]
[376317870,1753931449142,-460.0,0.00019768,2]
[376317871,1753931449151,-460.0,0.00019768,2]
[376317872,1753931449161,-460.0,0.00019768,2]
[376317873,1753931449171,-460.0,0.00019768,2]
[376317874,1753931449180,-460.0,0.00019768,2]
[376317875,1753931449190,-543.16,0.00019768,2]
[376317876,1753931449201,-460.0,0.00019768,2]
[376317877,1753931449211,-460.0,0.00019768,2]
[376317878,1753931449221,-460.0,0.00019768,2]
[376317879,1753931449231,-460.0,0.00019768,2]
[376317880,1753931449241,-460.0,0.00019768,2]
[376317881,1753931449251,-460.0,0.00019768,2]
[376317882,1753931449261,-460.0,0.00019768,2]